fUST/lending_fUST_20260602
["ID","MTS","AMOUNT","RATE_DAILY","PERIOD"]
[423725543,1780333840000,-488.5764657,0.00014871,2]
[423725558,1780333840000,-3567.91157966,0.00015653,2]
[423725554,1780333840000,-218.64924173,0.00015309,2]
[423725568,1780333840000,-206.13970261,0.00016248,2]
[423725570,1780333840000,-397.85125961,0.00016248,2]
[423725566,1780333840000,-192.04,0.00016248,2]
[423725548,1780333840000,-288.80308073,0.00014871,2]
[423725560,1780333840000,-152.0,0.00015667,2]
[423725562,1780333840000,-447.59882066,0.00015922,2]
[423725556,1780333840000,-152.0,0.00015599,7]
[423725564,1780333840000,-191.68766755,0.00015922,2]
[423725574,1780333841000,-3347.8848,0.00016249,2]
[423725572,1780333841000,-27488.24861664,0.00016249,2]
[423725732,1780333846000,-1487.50743795,0.00016087,2]
[423725731,1780333846000,-3267.86527569,0.00016087,2]
[423725738,1780333848000,-2274.99999997,0.00016249,2]
[423725736,1780333848000,-244.62728636,0.00016087,2]
[423725737,1780333848000,-64708.34265063,0.00016249,2]
[423725741,1780333884000,-5000.0,0.00014308,2]
[423725744,1780333913000,-5000.0,0.00014308,2]
[423725756,1780334206000,-5000.0,0.00014067,2]
[423725759,1780334235000,-5000.0,0.00014067,2]
[423725792,1780334679000,-711.62429788,0.000121,5]
[423725793,1780334679000,-4288.37570212,0.00014067,2]
[423725851,1780335032000,-1089.758,0.00013515,2]
[423725990,1780335038000,-524.919,0.00013515,2]
[423726275,1780335041000,-737.9389134,0.00013515,2]
[423726436,1780335044000,-152.0,0.0001491,2]
[423726429,1780335044000,-2647.3840866,0.00013515,2]
[423726435,1780335044000,-172.024289,0.00014598,2]
[423726437,1780335044000,-152.0,0.00014913,7]
[423726434,1780335044000,-185.85185547,0.00014515,2]
[423726439,1780335044000,-152.0,0.00015022,7]
[423726430,1780335044000,-598.05428408,0.00013651,2]
[423726433,1780335044000,-249.3975,0.00014452,2]
[423726432,1780335044000,-455.05241653,0.00014209,2]
[423726431,1780335044000,-610.29223075,0.00013651,2]
[423726438,1780335044000,-152.0,0.00014913,7]
[423726442,1780335044000,-92.09206519,0.00015786,2]
[423726454,1780335044000,-114.08017393,0.00016049,2]
[423726446,1780335044000,-207.90793481,0.00015786,2]
[423726451,1780335044000,-331.04996848,0.00015787,2]
[423726448,1780335044000,-595.88994327,0.00015787,2]
[423726450,1780335044000,-1058.30053924,0.00015787,2]
[423726452,1780335044000,-170.59511511,0.0001603,2]
[423726455,1780335044000,-711.59071687,0.00016049,2]
[423726456,1780335044000,-3496.11693377,0.00016049,2]
[423726457,1780335044000,-34673.8823505,0.00016049,2]
[423726453,1780335044000,-500.0,0.00016039,2]
[423726470,1780335046000,-1801.77212347,0.00016049,2]
[423726467,1780335046000,-305.9666907,0.00016049,2]
[423726468,1780335046000,-2421.5591555,0.00016049,2]
[423726469,1780335046000,-1114.19787185,0.00016049,2]
[423726471,1780335152000,-2026.19257799,0.00015889,2]
[423726474,1780335838000,1591.389,0.00022603,120]
[423726540,1780336232000,-446.53672617,0.00013656,2]
[423726551,1780336233000,-300.0,0.00014505,2]
[423726547,1780336233000,-4553.46327383,0.00013656,2]
[423726552,1780336233000,-300.0,0.00014505,2]
[423726549,1780336233000,-166.851013,0.00014073,2]
[423726556,1780336233000,-304.0474576,0.00014506,2]
[423726554,1780336233000,-1200.0,0.00014505,2]
[423726565,1780336233000,-166.851013,0.00015555,2]
[423726559,1780336233000,-157.97407715,0.00014933,2]
[423726558,1780336233000,-3988.7773827,0.00014506,2]
[423726569,1780336233000,-500.0,0.00015778,2]
[423726583,1780336233000,-291.1804523,0.00015779,2]
[423726563,1780336233000,-152.0,0.00015022,7]
[423726585,1780336233000,-2579.07360226,0.00015779,2]
[423726561,1780336233000,-152.0,0.00015022,7]
[423726580,1780336233000,-160.9543485,0.00015779,2]
[423726582,1780336233000,-2833.0503157,0.00015779,2]
[423726574,1780336233000,-500.0,0.00015778,2]
[423726578,1780336233000,-500.0,0.00015778,2]
[423726572,1780336233000,-500.0,0.00015778,2]
[423726571,1780336233000,-500.0,0.00015778,2]
[423726567,1780336233000,-500.0,0.00015778,2]
[423726576,1780336233000,-556.12203322,0.00015778,2]
[423726679,1780336242000,-1625.53410256,0.00015779,2]
[423726641,1780336242000,-18539.9466972,0.00015779,2]
[423726643,1780336242000,-38678.47018479,0.00015779,2]
[423726633,1780336242000,-5000.0,0.00015621,2]
[423726635,1780336242000,-2171.7,0.00015779,2]
[423726897,1780336244000,-1992.47807457,0.00015849,2]
[423726896,1780336244000,-161.69988457,0.000158,55]
[423726899,1780336244000,-68810.16181563,0.00015849,2]
[423726901,1780336244000,-6594.87904515,0.00015849,2]
[423726894,1780336244000,-6888.58375969,0.00015779,2]
[423727233,1780336246000,-4043.17442128,0.00015849,2]
[423727262,1780336929000,-1144.07825743,0.00013421,2]
[423727315,1780337432000,-301.51421349,0.00013557,2]
[423727314,1780337432000,-382.22,0.00013557,2]
[423727316,1780337432000,-2876.51386107,0.00013557,2]
[423727329,1780337439000,-237.34922015,0.00013694,2]
[423727328,1780337439000,-1439.75192544,0.00013557,2]
[423727357,1780337439000,-1032.52880362,0.000137,2]
[423727355,1780337439000,-720.0,0.00013699,2]
[423727353,1780337439000,-217.70319638,0.00013694,2]
[423727620,1780337441000,-304.0,0.000137,2]
[423727827,1780337444000,-1541.35527737,0.00013563,2]
[423727823,1780337444000,-1807.23285433,0.00013563,2]
[423727854,1780337446000,-457.97027853,0.00013784,3]
[423727852,1780337446000,-1651.4118683,0.00013563,2]
[423727853,1780337446000,-1273.73518578,0.000137,2]
[423727855,1780337446000,-172.024289,0.00013806,2]
[423727857,1780337446000,-249.3975,0.00014214,2]
[423727859,1780337446000,-300.0,0.00014431,2]
[423727858,1780337446000,-162.1557439,0.00014287,2]
[423727860,1780337446000,-300.0,0.00014431,2]
[423727863,1780337446000,-168.76010461,0.00014572,2]
[423727861,1780337446000,-1500.64121874,0.00014432,3]
[423727862,1780337446000,-331.23989539,0.00014432,3]
[423727856,1780337446000,-282.04795771,0.00014145,2]
[423727882,1780338631000,-3420.64699535,0.00012895,2]
[423727940,1780338638000,-170.59511511,0.00014956,2]
[423727939,1780338638000,-164.05576265,0.00014572,2]
[423727936,1780338638000,-249.3975,0.0001443,2]
[423727938,1780338638000,-131.23989539,0.00014572,2]
[423727935,1780338638000,-186.45010409,0.00014366,2]
[423727941,1780338638000,-420.0,0.00015022,2]
[423727948,1780338638000,-151.5,0.00015474,2]
[423727937,1780338638000,-189.40992432,0.00014432,3]
[423727945,1780338638000,-577.91,0.00015055,2]
[423727943,1780338638000,-575.96747652,0.00015055,2]
[423727942,1780338638000,-152.0,0.00015027,7]
[423727946,1780338638000,-500.0,0.00015055,2]
[423727932,1780338638000,-1328.17665789,0.00014304,2]
[423727930,1780338638000,-2591.43129289,0.00014304,2]
[423727922,1780338638000,-174.48607695,0.00013132,2]
[423727926,1780338638000,-300.0,0.00013708,2]
[423727927,1780338638000,-180.06261352,0.0001371,2]
[423727928,1780338638000,-932.91526544,0.00014304,2]
[423727931,1780338638000,-3731.66106176,0.00014304,2]
[423727929,1780338638000,-1658.51602745,0.00014304,2]
[423727925,1780338638000,-300.0,0.00013708,2]
[423727923,1780338638000,-838.0,0.00013231,2]
[423727924,1780338638000,-172.024289,0.00013501,2]
[423727921,1780338638000,-4117.61077429,0.00013025,2]
[423727920,1780338638000,-1579.35300465,0.00012895,2]
[423727947,1780338638000,-407.12164296,0.00015057,2]
[423727933,1780338638000,-3751.02867617,0.00014304,2]
[423727944,1780338638000,-500.0,0.00015055,2]
[423727934,1780338638000,-518.28625858,0.00014304,2]
[423727953,1780338638000,-203.93324568,0.00015474,2]
[423727978,1780338638000,-67891.2512388,0.00015749,2]
[423727977,1780338638000,-33922.586812,0.00015749,2]
[423727975,1780338638000,-500.0,0.00015748,2]
[423727970,1780338638000,-290.88771585,0.00015645,3]
[423727972,1780338638000,-500.0,0.00015748,2]
[423727971,1780338638000,-152.0,0.00015732,2]
[423727974,1780338638000,-500.0,0.00015748,2]
[423727967,1780338638000,-500.0,0.00015626,58]
[423727969,1780338638000,-178.624404,0.00015626,58]
[423727968,1780338638000,-500.0,0.00015626,58]
[423727973,1780338638000,-500.0,0.00015748,2]
[423727966,1780338638000,-500.0,0.00015626,58]
[423727965,1780338638000,-500.0,0.00015626,58]
[423727964,1780338638000,-500.0,0.00015626,58]
[423727949,1780338638000,-151.5,0.00015474,2]
[423727963,1780338638000,-500.0,0.00015626,58]
[423727951,1780338638000,-151.5,0.00015474,2]
[423727952,1780338638000,-302.47922684,0.00015474,2]
[423727955,1780338638000,-162.75866087,0.00015501,2]
[423727954,1780338638000,-189.543726,0.00015481,2]
[423727950,1780338638000,-151.5,0.00015474,2]
[423727961,1780338638000,-218.3853392,0.00015502,2]
[423727976,1780338638000,-500.0,0.00015748,2]
[423727957,1780338638000,-500.0,0.00015501,2]
[423727956,1780338638000,-500.0,0.00015501,2]
[423727959,1780338638000,-15111.8303214,0.00015502,2]
[423727958,1780338638000,-235.4880464,0.00015502,2]
[423727960,1780338638000,-1003.0807686,0.00015502,2]
[423727962,1780338638000,-500.0,0.00015548,2]
[423727980,1780338640000,-375.82439501,0.00015749,2]
[423728061,1780338646000,-1392.1162603,0.00015749,2]
[423728050,1780338646000,-1900.0,0.00015749,2]
[423728049,1780338646000,-3750.17835467,0.00015749,2]
[423728086,1780338699000,500.02937157,0.000199,120]
[423728085,1780338699000,500.02937157,0.00019846,120]
[423728087,1780338700000,500.02937157,0.00019953,120]
[423728088,1780338732000,5000.0,0.00022932,30]
[423728090,1780338749000,-429.6118162,0.00014842,2]
[423728129,1780339833000,-152.0,0.00015022,7]
[423728131,1780339833000,-152.0,0.00015027,7]
[423728127,1780339833000,-150.46065557,0.00014989,2]
[423728119,1780339833000,-500.0,0.00014841,2]
[423728123,1780339833000,-500.0,0.00014841,2]
[423728122,1780339833000,-636.98720709,0.00014841,2]
[423728125,1780339833000,-22641.1044888,0.00014842,2]
[423728124,1780339833000,-460.96818549,0.00014842,2]
[423728121,1780339833000,-500.0,0.00014841,2]
[423728120,1780339833000,-500.0,0.00014841,2]
[423728126,1780339833000,-610.62555427,0.00014917,3]
[423728112,1780339833000,-1985.01997912,0.00014834,2]
[423728118,1780339833000,-543.11802766,0.00014841,2]
[423728117,1780339833000,-418.26602085,0.00014841,2]
[423728116,1780339833000,-500.0,0.00014841,2]
[423728115,1780339833000,-198.5,0.00014841,2]
[423728114,1780339833000,-752.3105764,0.00014834,2]
[423728130,1780339833000,-152.0,0.00015022,7]
[423728113,1780339833000,-1255.00125448,0.00014834,2]
[423728111,1780339833000,-214.8059082,0.00014834,2]
[423728110,1780339833000,-802.0,0.00014833,2]
[423728108,1780339833000,-5000.0,0.00014685,2]
[423728109,1780339833000,-300.0,0.00014833,2]
[423728128,1780339833000,-270.55835085,0.00014989,2]
[423728132,1780339833000,-152.0,0.00015027,7]
[423728138,1780339833000,-611.10075194,0.00015055,2]
[423728133,1780339833000,-152.0,0.00015031,7]
[423728157,1780339833000,-34610.77874614,0.00015549,2]
[423728158,1780339833000,-4815.12819504,0.00015549,2]
[423728154,1780339833000,-500.0,0.00015501,2]
[423728156,1780339833000,-440.10725765,0.0001554,2]
[423728155,1780339833000,-500.37088149,0.00015501,2]
[423728153,1780339833000,-206.84999157,0.000155,29]
[423728152,1780339833000,-203.58167469,0.000155,29]
[423728151,1780339833000,-203.58167469,0.000155,29]
[423728141,1780339833000,-158.48258848,0.00015257,2]
[423728149,1780339833000,-195.84572508,0.000155,29]
[423728150,1780339833000,-202.39223164,0.000155,29]
[423728148,1780339833000,-500.0,0.0001549,2]
[423728145,1780339833000,-500.0,0.00015389,2]
[423728139,1780339833000,-500.0,0.00015115,2]
[423728136,1780339833000,-500.0,0.00015055,2]
[423728147,1780339833000,-1873.6264246,0.00015449,2]
[423728140,1780339833000,-226.91,0.00015131,2]
[423728134,1780339833000,-500.0,0.00015055,2]
[423728135,1780339833000,-500.0,0.00015055,2]
[423728142,1780339833000,-500.0,0.00015329,2]
[423728144,1780339833000,-152.0,0.0001533,2]
[423728143,1780339833000,-500.0,0.00015329,2]
[423728146,1780339833000,-373.608661,0.0001544,2]
[423728137,1780339833000,-548.92,0.00015055,2]
[423728165,1780339838000,-516472.06156099,0.00015549,2]
[423728166,1780339838000,-575738.56478353,0.00015549,2]
[423728365,1780339843000,-152.0,0.00014814,2]
[423728367,1780339843000,-1963.88327861,0.00015394,2]
[423728692,1780339846000,-136.6080418,0.00015027,7]
[423728690,1780339846000,-152.0,0.00015027,7]
[423729423,1780340458000,-700.0,0.00014692,2]
[423729480,1780341032000,-276.36,0.00015349,2]
[423729479,1780341032000,-33019.7238345,0.00015349,2]
[423729457,1780341032000,-5000.0,0.00014446,2]
[423729467,1780341032000,-500.0,0.00014841,2]
[423729468,1780341032000,-500.0,0.00014841,2]
[423729459,1780341032000,-237.34922015,0.00014592,2]
[423729465,1780341032000,-532.0,0.0001484,2]
[423729463,1780341032000,-343.18310595,0.00014732,2]
[423729461,1780341032000,-300.58580351,0.00014732,2]
[423729470,1780341032000,-152.0,0.00015032,7]
[423729475,1780341032000,-237.44302301,0.00015348,2]
[423729471,1780341032000,-152.0,0.00015036,7]
[423729473,1780341032000,-300.0,0.00015347,2]
[423729472,1780341032000,-160.94666497,0.00015115,2]
[423729478,1780341032000,-1078.08916142,0.00015349,2]
[423729474,1780341032000,-297.0,0.00015348,2]
[423729476,1780341032000,-2289.16675862,0.00015349,2]
[423729477,1780341032000,-21284.23976625,0.00015349,2]
[423729481,1780341032000,-997.32222237,0.00015349,2]
[423729469,1780341032000,-15.3919582,0.00015027,7]
[423729496,1780341038000,-25248.37409315,0.00015349,2]
[423729510,1780341040000,-152.0,0.00015032,7]
[423729511,1780341040000,-160.0,0.00015349,2]
[423729534,1780341043000,-404.53130019,0.00015349,2]
[423729543,1780341046000,-3374.98442949,0.00015196,2]
[423729542,1780341046000,-1625.01557051,0.00015196,2]
[423729544,1780341046000,-11262.30536223,0.00015349,2]
[423729588,1780342232000,-634.64718116,0.00012505,2]
[423729679,1780342241000,-4365.35281884,0.00012505,2]
[423729691,1780342241000,-282.10909287,0.00013296,2]
[423729698,1780342241000,-198.23498937,0.00015,2]
[423729693,1780342241000,-269.42040041,0.00014163,2]
[423729694,1780342241000,-420.0,0.00014576,2]
[423729696,1780342241000,-198.23498937,0.00015,2]
[423729683,1780342241000,-405.63230265,0.00012631,2]
[423729681,1780342241000,-225.35127925,0.00012631,2]
[423729687,1780342241000,-300.0,0.00013295,2]
[423729685,1780342241000,-720.4029695,0.00012631,2]
[423729700,1780342241000,-205.1205195,0.00015,2]
[423729702,1780342241000,-206.37131497,0.00015,2]
[423729704,1780342241000,-39.58677814,0.00015,2]
[423729688,1780342241000,-300.0,0.00013295,2]
[423730320,1780342246000,-831.901,0.00015042,2]
[423730322,1780342246000,-150.56336275,0.00015042,2]
[423730324,1780342246000,-1118.70035639,0.000151,25]
[423730326,1780342246000,-711.65574976,0.000151,25]
[423730319,1780342246000,-152.0,0.00015031,7]
[423730318,1780342246000,-170.19623851,0.00015,2]
[423730473,1780342250000,-495.87842599,0.000151,25]
[423730474,1780342250000,-1283.84368232,0.000151,25]
[423730475,1780342250000,-1225.19707376,0.000151,25]
[423730472,1780342250000,-5000.0,0.0001485,2]
[423730476,1780342250000,-170.59511511,0.00015148,2]
[423730477,1780342250000,-14212.48570282,0.00015149,2]
[423730478,1780342250000,-505.29643346,0.00015149,2]
[423730479,1780342250000,-699.55999999,0.00015149,2]
[423730483,1780342284000,316.38006751,0.00022979,120]
[423730481,1780342284000,316.38006751,0.00022979,120]
[423730480,1780342284000,316.38006751,0.00022979,120]
[423730486,1780342285000,316.38006751,0.00022979,120]
[423730485,1780342285000,316.38006751,0.00022979,120]
[423730484,1780342285000,316.38006751,0.00022979,120]
[423730488,1780342286000,316.38006751,0.00022979,120]
[423730487,1780342286000,316.38006751,0.00022979,120]
[423730489,1780342349000,-2026.19257799,0.00014948,2]
[423730512,1780343433000,-1200.0,0.00014899,2]
[423730513,1780343433000,-182.21116218,0.000149,2]
[423730510,1780343433000,-300.0,0.00014899,2]
[423730520,1780343433000,-157.35322142,0.000149,2]
[423730506,1780343433000,-269.4713347,0.00013345,2]
[423730521,1780343433000,-170.59511511,0.00014932,2]
[423730509,1780343433000,-188.59428029,0.0001408,2]
[423730505,1780343433000,-705.40012059,0.00012949,2]
[423730515,1780343433000,-186.84268982,0.000149,2]
[423730507,1780343433000,-191.46773618,0.00013463,2]
[423730519,1780343433000,-189.96524108,0.000149,2]
[423730511,1780343433000,-300.0,0.00014899,2]
[423730517,1780343433000,-187.68167723,0.000149,2]
[423730514,1780343433000,-182.21116218,0.000149,2]
[423730530,1780343433000,-4336.5428403,0.00014949,2]
[423730528,1780343433000,-2828.12736461,0.00014948,2]
[423730529,1780343433000,-9607.83882833,0.00014949,2]
[423730508,1780343433000,-406.46207044,0.00013852,2]
[423730526,1780343433000,-254.3258255,0.00014946,2]
[423730527,1780343433000,-884.2576153,0.00014946,2]
[423730525,1780343433000,-564.2329323,0.00014946,2]
[423730523,1780343433000,-539.6993436,0.00014946,2]
[423730522,1780343433000,-2026.1925781,0.00014946,2]
[423730518,1780343433000,-189.96524108,0.000149,2]
[423730524,1780343433000,-1346.9353491,0.00014946,2]
[423730516,1780343433000,-186.84268982,0.000149,2]
[423730550,1780343441000,-17954.66341884,0.00014949,2]
[423730581,1780343444000,-2417.00824715,0.00014949,2]
[423730604,1780343447000,-456.0,0.00014949,2]
[423730606,1780343730000,292.325,0.00022982,120]
[423730607,1780343750000,982.7,0.00022982,120]
[423730609,1780344049000,786.17,0.00023059,120]
[423730610,1780344182000,-1000.0,0.00012513,2]
[423730611,1780344217000,-500.0,0.00012513,2]
[423730615,1780344349000,628.92,0.00023076,120]
[423730617,1780344502000,-637.31451517,0.00011781,2]
[423730618,1780344506000,-154.51335139,0.00011781,2]
[423730619,1780344508000,-154.47657397,0.00011781,2]
[423730620,1780344510000,-432.85875169,0.00011781,2]
[423730627,1780344631000,-5000.0,0.000119,2]
[423730626,1780344631000,-2209.45376381,0.00011781,2]
[423730629,1780344631000,-300.0,0.00012019,2]
[423730639,1780344631000,-243.65705884,0.00014549,2]
[423730640,1780344631000,-175448.37708067,0.00014635,2]
[423730637,1780344631000,-179.0,0.00013221,2]
[423730638,1780344631000,-587.0,0.00014484,2]
[423730635,1780344631000,-324.5531,0.00012526,2]
[423730636,1780344631000,-420.0,0.00013194,2]
[423730641,1780344631000,-2511.79930242,0.00014635,2]
[423730633,1780344631000,-5000.0,0.0001202,2]
[423730631,1780344631000,-1200.0,0.00012019,2]
[423730703,1780344638000,-1393.27389609,0.00014635,2]
[423730700,1780344638000,-745622.47335539,0.00014635,2]
[423730678,1780344638000,-146015.43203342,0.00014635,2]
[423730954,1780344640000,-1379.16319222,0.00014635,2]
[423731330,1780344643000,-2079.16318619,0.00014489,2]
[423731331,1780344643000,-63591.02212894,0.00014635,2]
[423731641,1780344647000,-31165.46272917,0.00014635,2]
[423731640,1780344647000,-909.64372297,0.00014635,2]
[423731642,1780344648000,628.91,6.85e-05,60]
[423731643,1780344649000,1132.08,0.00023076,120]
[423731645,1780344712000,500.0,0.00021932,120]
[423731646,1780344713000,500.0,0.00021932,120]
[423731647,1780344714000,500.0,0.00021932,120]
[423731648,1780344715000,500.0,0.00021932,120]
[423731650,1780344716000,500.0,0.00021932,120]
[423731649,1780344716000,500.0,0.00021932,120]
[423731651,1780344717000,500.0,0.00021932,120]
[423731652,1780344718000,500.0,0.00021932,120]
[423731653,1780344719000,500.0,0.00021932,120]
[423731655,1780344720000,482.66,0.00021932,120]
[423731654,1780344720000,500.0,0.00021932,120]
[423731657,1780344948000,339.64,0.00023076,120]
[423731656,1780344948000,188.68,6.85e-05,60]
[423731663,1780345247000,44.01,5e-05,2]
[423731662,1780345247000,182.41,5e-05,2]
[423731664,1780345288000,-1000.0,0.00011718,2]
[423731665,1780345289000,-1000.0,0.00011718,2]
[423731666,1780345448000,-270.58737936,0.0001137,2]
[423731667,1780345451000,-372.05544478,0.0001137,2]
[423731669,1780345507000,-364.98884934,0.00011256,2]
[423731670,1780345509000,-173.994366,0.00011256,2]
[423731671,1780345511000,-349.11268212,0.00011256,2]
[423731672,1780345513000,-151.0,0.00011256,2]
[423731676,1780345627000,-278.80805309,0.00011143,2]
[423731677,1780345632000,-251.59692967,0.00011032,2]
[423731678,1780345702000,-1379.16319222,0.00010922,2]
[423731680,1780345822000,-300.0,0.00010813,2]
[423731681,1780345825000,-280.963132,0.00010705,2]
[423731682,1780345827000,-337.22754099,0.00010705,2]
[423731714,1780345832000,-2894.3666655,0.00010705,2]
[423731718,1780345832000,-235.06686916,0.00010813,2]
[423731717,1780345832000,-276.1080656,0.00010705,2]
[423731790,1780345838000,-500.0,0.00014533,2]
[423731791,1780345838000,-500.0,0.00014533,2]
[423731793,1780345838000,-500.0,0.00014533,2]
[423731803,1780345838000,-500.0,0.00014533,2]
[423731805,1780345838000,-500.0,0.00014533,2]
[423731813,1780345838000,-500.0,0.00014533,2]
[423731799,1780345838000,-500.0,0.00014533,2]
[423731807,1780345838000,-500.0,0.00014533,2]
[423731796,1780345838000,-500.0,0.00014533,2]
[423731811,1780345838000,-500.0,0.00014533,2]
[423731788,1780345838000,-3343.58860114,0.00014502,2]
[423731815,1780345838000,-500.0,0.00014533,2]
[423731809,1780345838000,-340.84916339,0.00014533,2]
[423731786,1780345838000,-300.0,0.00014501,2]
[423731765,1780345838000,-366.10854265,0.00013821,3]
[423731784,1780345838000,-213.19992645,0.00014434,2]
[423731780,1780345838000,-2902.41353889,0.00014243,3]
[423731778,1780345838000,-1004.86405208,0.00013872,3]
[423731767,1780345838000,-627.74356355,0.00013872,3]
[423731817,1780345838000,-500.0,0.00014533,2]
[423731761,1780345838000,-725.60338472,0.00013501,3]
[423731756,1780345838000,-181.40084618,0.0001313,3]
[423731753,1780345838000,-153.03924263,0.00012827,2]
[423731763,1780345838000,-229.99,0.00013684,2]
[423731759,1780345838000,-153.03924263,0.00013469,14]
[423731751,1780345838000,-200.0,0.00011899,2]
[423731747,1780345838000,-166.27801909,0.00010813,2]
[423731749,1780345838000,-130.76470766,0.00010922,2]
[423731739,1780345838000,-379.225,0.00010813,2]
[423731782,1780345838000,-526.318381,0.00014312,2]
[423731755,1780345838000,-153.03924263,0.00013084,7]
[423731819,1780345838000,-500.0,0.00014533,2]
[423731827,1780345838000,-501.06676911,0.00014533,2]
[423731822,1780345838000,-500.0,0.00014533,2]
[423731852,1780345838000,-500.0,0.00014534,2]
[423731848,1780345838000,-500.0,0.00014534,2]
[423731843,1780345838000,-500.0,0.00014534,2]
[423731846,1780345838000,-500.0,0.00014534,2]
[423731844,1780345838000,-500.0,0.00014534,2]
[423731847,1780345838000,-500.0,0.00014534,2]
[423731850,1780345838000,-500.0,0.00014534,2]
[423731845,1780345838000,-500.0,0.00014534,2]
[423731851,1780345838000,-504.44363099,0.00014534,2]
[423731849,1780345838000,-670.25,0.00014534,2]
[423731840,1780345838000,-500.0,0.00014534,2]
[423731842,1780345838000,-500.0,0.00014534,2]
[423731841,1780345838000,-500.0,0.00014534,2]
[423731839,1780345838000,-500.0,0.00014534,2]
[423731853,1780345838000,-500.0,0.00014534,2]
[423731837,1780345838000,-500.93356271,0.00014534,2]
[423731838,1780345838000,-500.0,0.00014534,2]
[423731828,1780345838000,-500.0,0.00014533,2]
[423731824,1780345838000,-500.0,0.00014533,2]
[423731821,1780345838000,-500.0,0.00014533,2]
[423731823,1780345838000,-502.30215868,0.00014533,2]
[423731826,1780345838000,-500.9090379,0.00014533,2]
[423731829,1780345838000,-500.0,0.00014533,2]
[423731825,1780345838000,-500.0,0.00014533,2]
[423731831,1780345838000,-978.671,0.00014534,2]
[423731834,1780345838000,-556.31367779,0.00014534,2]
[423731835,1780345838000,-500.0,0.00014534,2]
[423731836,1780345838000,-1203.6,0.00014534,2]
[423731832,1780345838000,-518.8,0.00014534,2]
[423731830,1780345838000,-501.74550227,0.00014533,2]
[423731833,1780345838000,-500.0,0.00014534,2]
[423731899,1780345839000,-500.0,0.00014633,2]
[423731897,1780345839000,-286.774213,0.00014633,2]
[423731892,1780345839000,-500.0,0.00014633,2]
[423731891,1780345839000,-501.72320948,0.00014633,2]
[423731886,1780345839000,-500.0,0.00014633,2]
[423731885,1780345839000,-500.0,0.00014633,2]
[423731893,1780345839000,-279.163214,0.00014633,2]
[423731889,1780345839000,-500.0,0.00014633,2]
[423731887,1780345839000,-500.0,0.00014633,2]
[423731888,1780345839000,-500.0,0.00014633,2]
[423731906,1780345839000,-514.75,0.00014633,2]
[423731890,1780345839000,-500.0,0.00014633,2]
[423731895,1780345839000,-635.82948777,0.00014633,2]
[423731907,1780345839000,-500.0,0.00014633,2]
[423731898,1780345839000,-500.0,0.00014633,2]
[423731901,1780345839000,-500.0,0.00014633,2]
[423731903,1780345839000,-500.0,0.00014633,2]
[423731905,1780345839000,-500.0,0.00014633,2]
[423731900,1780345839000,-500.0,0.00014633,2]
[423731904,1780345839000,-500.0,0.00014633,2]
[423731908,1780345839000,-500.0,0.00014633,2]
[423731910,1780345839000,-500.0,0.00014633,2]
[423731921,1780345839000,-500.0,0.00014633,2]
[423731914,1780345839000,-500.0,0.00014633,2]
[423731916,1780345839000,-500.0,0.00014633,2]
[423731911,1780345839000,-500.0,0.00014633,2]
[423731909,1780345839000,-500.0,0.00014633,2]
[423731883,1780345839000,-500.0,0.00014633,2]
[423731902,1780345839000,-500.0,0.00014633,2]
[423731896,1780345839000,-500.0,0.00014633,2]
[423731869,1780345839000,-500.0,0.00014632,2]
[423731884,1780345839000,-500.0,0.00014633,2]
[423731854,1780345839000,-500.0,0.00014534,2]
[423731855,1780345839000,-500.0,0.00014534,2]
[423731867,1780345839000,-500.0,0.00014632,2]
[423731857,1780345839000,-500.0,0.00014534,2]
[423731859,1780345839000,-3183.81,0.00014534,2]